Cogmind - Beta 16 @@@ ROGUE MODE // 2026.01.02 @ 04:24:53 Player: Zaros426 Result: Destroyed by S-27 Virus with Autogun Performance ------------- Evolutions (5) 2500 Regions Visited (17) 3400 Robots Destroyed (123) 615 Value Destroyed (3130) 3130 Prototype IDs (75) 1500 Alien Tech Used (0) 0 Bonus (1467) 1467 TOTAL SCORE: 12612 Bonus ------- High Alert Combat Kills 359 Follower Combat Kills 317 Registered with UFD 300 Met Optimus in HQ 500 Met Data Miner 300 Met Warlord at Base 500 MAIN.C Attacked Warlord 500 Warlord Defense Kills 468 Friendly Fire -1777 Cogmind --------- Core Integrity 0/1000 Matter 295/300 Energy 99/100 System Corruption 3% Temperature Cool (0) Movement Core (50) Location -4/Proximity Caves Parts ------- > --- POWER (2) -------- (None) > --- PROPULSION (7) --- (None) > --- UTILITY (6) ------ (None) > --- WEAPON (2) ------- (None) > --- INVENTORY (5) ---- System Mapper Advanced Trap Extractor (8/8 Dirty Bomb) Advanced Datajack Improved Plasma Cutter Companion Sword Peak State ------------ > --- POWER ------------ Vortex Chain Reactor > --- PROPULSION ------- Makeshift Leg Makeshift Leg Experimental Myomer Leg Experimental Myomer Leg Cooled Nuclear Pulse Thruster Improved Diametric Drive Improved Diametric Drive > --- UTILITY ---------- Medium Storage Unit Enhanced Optical Array Advanced Terrain Scanner Force Field Advanced Remote Shield Improved Corruption Screen > --- WEAPON ----------- Advanced Datajack Companion Sword > --- INVENTORY -------- Cooled Antigrav System Experimental Heat Sink ECM Suite ECM Suite System Mapper Advanced Trap Extractor Improved Proton Missile Launcher Long-range Missile Launcher Dirty Datajack Improved Plasma Cutter [Rating: 120] Favorites ----------- Power Subdweller Power Source Engine Subdweller Power Source Power Core Neutrino Core Reactor Vortex Chain Reactor Propulsion Light Treads Treads Light Treads Leg Experimental Myomer Leg Wheel Compact Wheel Hover Unit Cooled Antigrav System Flight Unit VTOL Module Utility Medium Storage Unit Device Advanced Terrain Scanner Storage Medium Storage Unit Processor Advanced Melee Analysis Suite Hackware Improved Hacking Suite Protection Light Armor Plating Weapon Companion Sword Energy Gun Subdweller Laser Energy Cannon Subdweller Beam Cannon Ballistic Gun Assault Rifle Ballistic Cannon Battle Cannon Launcher Grenade Launcher Special Weapon Remote Datajack Slashing Weapon Companion Sword Special Melee Weapon Advanced Datajack Build | -11 -10 -10 -10 -9 -9 -6 -6 -6 -6 -6 -6 -5 -5 -5 -5 -5 -4 ------- Run | Yrd Mat Min Sub Rec Scr Fac Was Fac Low Low Dat Pro Fac Upp Upp War Pro Slots Evolved 10 | . . . . . . 8 . . . . . . 2 . . . . Power 1 | . . . . . . 1 . . . . . . . . . . . Propulsion 5 | . . . . . . 5 . . . . . . . . . . . Utility 4 | . . . . . . 2 . . . . . . 2 . . . . Weapon . | . . . . . . . . . . . . . . . . . . Parts Attached 141 | 8 12 1 17 3 9 22 6 2 2 1 . 3 16 7 7 24 1 Power 20 | 1 . . 3 . 3 3 2 . . . . 2 3 . 2 1 . Engine 11 | 1 . . 3 . 3 1 . . . . . 1 1 . 1 . . Core 7 | . . . . . . 2 1 . . . . 1 2 . 1 . . Reactor 2 | . . . . . . . 1 . . . . . . . . 1 . Propulsion 43 | 2 2 . 4 1 2 5 1 . 1 . . . 6 1 2 16 . Treads 9 | 2 2 . 4 1 . . . . . . . . . . . . . Leg 8 | . . . . . . . . . . . . . . . . 8 . Wheel 2 | . . . . . 2 . . . . . . . . . . . . Hover 6 | . . . . . . . . . . . . . . . . 6 . Flight 18 | . . . . . . 5 1 . 1 . . . 6 1 2 2 . Utility 49 | 2 5 1 2 2 1 13 2 2 1 1 . . 7 6 1 3 . Device 25 | 1 1 1 1 . . 7 2 . 1 1 . . 3 4 . 3 . Storage 8 | 1 3 . 1 . 1 1 . . . . . . 1 . . . . Processor 9 | . . . . . . 4 . 1 . . . . 2 1 1 . . Hackware 1 | . . . . . . . . . . . . . 1 . . . . Protection 6 | . 1 . . 2 . 1 . 1 . . . . . 1 . . . Artifact . | . . . . . . . . . . . . . . . . . . Weapon 29 | 3 5 . 8 . 3 1 1 . . . . 1 . . 2 4 1 Energy Gun 8 | 2 1 . 3 . . . . . . . . . . . . 2 . Energy Cannon 2 | . . . 1 . 1 . . . . . . . . . . . . Ballistic Gun 7 | 1 3 . 3 . . . . . . . . . . . . . . Ballistic Cannon 1 | . . . 1 . . . . . . . . . . . . . . Launcher 3 | . 1 . . . . . . . . . . . . . 1 1 . Special Weapon 2 | . . . . . 1 . . . . . . . . . . 1 . Impact Weapon . | . . . . . . . . . . . . . . . . . . Slashing Weapon 4 | . . . . . 1 1 . . . . . 1 . . 1 . . Piercing Weapon . | . . . . . . . . . . . . . . . . . . Special Melee Weapon 2 | . . . . . . . 1 . . . . . . . . . 1 Unidentified Prototypes 15 | . . 1 . . 1 . 1 . . . . . 4 . . 8 . Parts Lost 46 | . . . 7 . . 2 . . . 1 . . 8 3 12 9 4 Power 6 | . . . . . . 1 . . . . . . 3 . 2 . . Propulsion 21 | . . . 3 . . 1 . . . 1 . . 2 1 5 5 3 Utility 13 | . . . 1 . . . . . . . . . 3 1 5 3 . Weapon 6 | . . . 3 . . . . . . . . . . 1 . 1 1 Highest Loss Streak 8 | . . . 2 . . 2 . . . 1 . . 5 3 7 8 4 To Critical Strikes . | . . . . . . . . . . . . . . . . . . Average Backups 13 | . 9 14 14 16 16 10 10 10 10 10 10 10 9 10 9 9 6 Power 1 | . . . 1 4 2 . . . . . . . . . . . . Propulsion 1 | . 1 4 2 2 2 . . . . . . . . . . . . Utility 5 | . 1 4 4 4 7 7 8 8 8 8 8 8 6 6 5 4 2 Weapon 3 | . 6 6 6 5 3 . . . . . . . . 1 . 1 2 Tool/Special . | . . . . . . . . . . . . . . . . . . Unused Backups 35 | . 5 . 5 4 14 . 1 . . . . . 2 1 . . 3 Power 3 | . . . . 1 2 . . . . . . . . . . . . Propulsion 4 | . . . . 1 3 . . . . . . . . . . . . Utility 8 | . 1 . . . 5 . . . . . . . 1 . . . 1 Weapon 17 | . 4 . 5 2 4 . . . . . . . . 1 . . 1 Tool/Special 3 | . . . . . . . 1 . . . . . 1 . . . 1 Average Slot Usage (%) 89 | . 100 100 97 100 96 76 79 82 83 72 72 76 79 77 65 78 36 Engine 10 | . 14 14 13 14 14 3 5 5 5 5 5 9 4 . . . . Treads 16 | . 28 28 27 28 25 . . . . . . . . . . . . Leg 1 | . . . . . . . . . . . . . . . . 17 10 Flight 6 | . . . . . . 18 21 22 22 16 16 16 18 29 23 14 . Device 5 | . 7 . 10 . . 10 11 10 11 10 9 10 12 10 3 9 . Storage 11 | . 14 14 14 14 15 5 5 5 5 5 5 5 5 5 5 5 3 Processor 6 | . . . . . . 20 22 22 22 22 22 22 18 6 14 10 3 Protection 5 | . 7 14 . 13 12 . . . . . 1 . . 4 . . . Energy Gun 4 | . 1 . 5 14 7 . . . . . . . . . . . . Energy Cannon 5 | . . . 3 14 14 . . . . . . . . . . . . Ballistic Gun 4 | . 25 28 13 . . . . . . . . . . . . . . Slashing Weapon 3 | . . . . . . 10 8 10 11 10 9 11 9 10 10 6 1 Peak Build Rating 120 | 9 9 16 21 17 24 84 97 96 97 97 83 88 115 82 66 120 84 Average Rating 41 | 6 8 8 15 16 16 79 88 92 96 82 80 87 100 73 55 101 54 On Entrance 52 | . 9 8 9 17 16 22 74 96 90 97 80 80 86 82 63 39 84 Avg Prop Armor Cover (%) 10 | . . . . . . . . . . . . . . . 7 9 14 Naked Turns 87 | . . . . . . . . . . . . . . . . . 87 Heaviest Build 74 | 15 52 32 59 60 64 30 40 39 38 39 30 33 39 32 25 74 49 Greatest Support 151 | 40 40 40 40 40 40 36 39 39 40 40 33 33 51 32 31 151 68 Greatest Overweight (x) 3 | . 1 . 1 1 3 . 1 . . . . . . 1 1 1 . Average Overweight (x) . | . . . . 1 1 . . . . . . . . . . . . Largest Inventory Capacity 25 | 8 20 15 20 20 20 20 10 10 10 10 10 10 25 10 10 10 10 Average Capacity 15 | 7 14 15 16 20 20 10 10 10 10 10 10 10 10 10 10 10 8 Most Carried 20 | 3 19 15 20 20 20 16 10 10 10 10 10 10 10 10 10 10 10 Average Carried 14 | 1 9 14 15 19 19 10 10 9 10 10 10 9 9 9 9 9 6 Final Capacity 20 | 8 15 15 20 20 20 10 10 10 10 10 10 10 10 10 10 10 5 Final Carried 20 | 2 14 15 20 20 20 10 10 10 10 10 10 10 10 10 10 7 5 Class Distribution -------------------- 35% | Mutant 27% | Scavenger-Mutant 17% | Scout 6% | Sprinter 3% | Commander-Mutant 3% | Trapper-Mutant Dominant Class ---------------- Mutant | -10/Materials Mutant | -10/Mines Mutant | -10/Subcaves Scavenger-Mutant | -9/Recycling Scavenger-Mutant | -9/Scraptown Scavenger-Sprinter | -6/Factory Sprinter | -6/Waste Scout | -6/Factory Scout | -6/Lower Caves Scout | -6/Lower Caves Commander-Sprinter | -6/Data Miner Scout | -5/Proximity Caves Scout | -5/Factory Sprinter | -5/Upper Caves Trapper-Sprinter | -5/Upper Caves Commander-Mutant | -5/Warlord Trapper-Mutant | -4/Proximity Caves Resources | -11 -10 -10 -10 -9 -9 -6 -6 -6 -6 -6 -6 -5 -5 -5 -5 -5 -4 ----------- Run | Yrd Mat Min Sub Rec Scr Fac Was Fac Low Low Dat Pro Fac Upp Upp War Pro Matter Collected 3267 | 221 590 59 661 30 105 235 100 10 90 165 . 90 145 126 160 440 40 Remotely . | . . . . . . . . . . . . . . . . . . Salvage Created 5930 | 127 716 . 516 336 . 899 459 114 216 216 . 260 1075 355 353 288 . Parts 312 | 10 47 . 36 24 . 62 5 4 6 6 . 7 63 21 16 5 . Haulers Intercepted 5 | . 2 . . . . 1 . . . . . . 2 . . . . Recyclers Shooed 5 | . 2 . . 1 . 1 . . . . . . 1 . . . . Parts Field Recycled . | . . . . . . . . . . . . . . . . . . Retrieved Matter . | . . . . . . . . . . . . . . . . . . Parts Self-Destructed 46 | . . . 6 . . . . . 1 10 . 5 . 12 11 . 1 Prevented 9 | . . . . . . . . . . 2 . 1 . . 6 . . Parts Restored 1 | . . . . . . . 1 . . . . . . . . . . Broken 1 | . . . . . . . 1 . . . . . . . . . . Kills | -11 -10 -10 -10 -9 -9 -6 -6 -6 -6 -6 -6 -5 -5 -5 -5 -5 -4 ------- Run | Yrd Mat Min Sub Rec Scr Fac Was Fac Low Low Dat Pro Fac Upp Upp War Pro Combat Hostiles Destroyed 68 | . 8 . 14 3 . 11 . . . 2 . 1 12 5 8 4 . Melee 38 | . . . . . . 11 . . . 2 . 1 11 5 8 . . Guns 12 | . 8 . 4 . . . . . . . . . . . . . . Cannons 9 | . . . 6 3 . . . . . . . . . . . . . AOE 9 | . . . 4 . . . . . . . . . 1 . . 4 . Classes Destroyed 19 | 2 6 . 1 1 . 2 . 1 . 2 . 1 1 2 . . . Worker 10 | . 5 . . . . 4 . . . . . . 1 . . . . Builder 7 | . 3 . . 1 . 1 . . . . . . 2 . . . . Tunneler 8 | 4 . . . . . 2 . . . . . . 2 . . . . Hauler 5 | . 2 . . . . 1 . . . . . . 2 . . . . Recycler 8 | 1 2 . . 2 . 1 . . . . . . 2 . . . . Minesweeper 2 | . . . . . . . . . . . . . . 1 1 . . Mechanic 3 | . . . . . . . . 2 . . . . . . . 1 . Operator 5 | . 1 . . . . 1 . 1 . . . . 2 . . . . Drone 1 | . . . . . . . . . . . . 1 . . . . . Watcher 5 | . . . . . . 3 . . . . . . 2 . . . . Swarmer 28 | . 2 . 3 . . 7 . . . . . . 5 5 6 . . Cutter 3 | . . . . . . . . . . . . . 3 . . . . Grunt 14 | . 6 . . . . 2 . . . 1 . . . . 1 4 . Sentry 5 | . . . . 3 . 1 . . . . . . 1 . . . . Programmer 5 | . . . . . . 1 . . . . . . 3 . 1 . . Subdweller 11 | . . . 11 . . . . . . . . . . . . . . Decomposer 4 | . . . . . . . . . 1 1 . . . 2 . . . Samaritan 4 | . . . . . . . . . . . . . . 2 2 . . Tinkerer 2 | . . . . . . . . . . 1 . 1 . . . . . Thug 2 | . . . . . . . . . . . . . . . . 2 . Mutant 1 | . . . . . . . . . . 1 . . . . . . . Best Kill Streak 12 | 5 5 . 3 2 . 6 . 2 . 1 . 1 12 5 3 5 . Combat Bots Only 10 | . 2 . 3 1 . 4 . . . 1 . 1 10 5 3 4 . Max Kills in Single Turn 5 | 1 2 . 2 1 . 2 . 1 1 1 . 1 1 1 1 5 . Gunslinging . | . . . . . . . . . . . . . . . . . . Exploded 4 | . . . 2 . . . . . . . . . 1 . . 4 . Melee 2 | . . . . . . 2 . . . 1 . 1 1 1 1 . . Uniques/NPCs Destroyed . | . . . . . . . . . . . . . . . . . . Combat | -11 -10 -10 -10 -9 -9 -6 -6 -6 -6 -6 -6 -5 -5 -5 -5 -5 -4 -------- Run | Yrd Mat Min Sub Rec Scr Fac Was Fac Low Low Dat Pro Fac Upp Upp War Pro Hostile Shots Fired 689 | . 51 . 56 2 . 69 . 18 1 41 2 . 172 35 65 76 101 Missed 298 | . 16 . 14 1 . 35 . 11 1 23 1 . 92 15 19 20 50 Hits 391 | . 35 . 42 1 . 34 . 7 . 18 1 . 80 20 46 56 51 Melee 11 | . . . . . . . . . . . . . 10 . . . 1 Projectile 380 | . 35 . 42 1 . 34 . 7 . 18 1 . 70 20 46 56 50 AOE 2 | . . . . . . . . . . . . . 1 . . 1 . Critical Strikes 20 | . 1 . 2 . . 1 . . . . . . 7 . . 5 4 Damage Taken 7712 | . 411 . 1206 15 . 576 . 61 . 271 50 . 1805 321 842 1263 891 Core 1212 | . 70 . 88 . . 36 . 6 . 6 . . 200 51 207 81 467 Absorbed by Shields 140 | . . . . . . . . . . . . . . . . 140 . Regen/Repaired (Parts) 24 | . . . . . . . . . . . . . . . . 24 . Core Remaining (%) 76 | 100 . . . . 36 . . . . . . 94 . . . . . Volleys Fired 165 | 10 54 . 72 19 2 . . . . . . . . . 2 6 . Largest 2 | 2 2 . 2 2 1 . . . . . . . . . 1 1 . Hottest 140 | 70 80 . 140 140 5 . . . . . . . . . 39 43 . Shots Fired 291 | 20 105 . 118 38 2 . . . . . . . . . 2 6 . Gun 221 | 20 103 . 79 19 . . . . . . . . . . . . . Cannon 51 | . . . 32 19 . . . . . . . . . . . . . Launcher 17 | . 2 . 7 . . . . . . . . . . . 2 6 . Special 2 | . . . . . 2 . . . . . . . . . . . . Kinetic 165 | 10 95 . 60 . . . . . . . . . . . . . . Thermal 76 | 9 . . 29 38 . . . . . . . . . . . . . Explosive 15 | . 2 . 7 . . . . . . . . . . . . 6 . Electromagnetic 33 | 1 8 . 22 . . . . . . . . . . . 2 . . Robot Hit Streak 17 | 10 12 . 13 17 2 . . . . . . . . . . 2 . Robot Miss Streak 9 | 2 9 . 2 1 . . . . . . . . . . 2 4 . Penetration Max . | . . . . . . . . . . . . . . . . . . Secondary Targets 1 | . 1 . . . . . . . . . . . . . . . . Max Gunslinging Chain 1 | . 1 . . . . . . . . . . . . . . . . Shots Hit Robots 355 | 15 61 . 70 12 2 42 9 4 7 19 2 10 42 18 28 14 . Core Hits 194 | 6 30 . 28 7 . 21 3 2 4 7 . 3 22 8 10 43 . Critical Kills . | . . . . . . . . . . . . . . . . . . Critical Parts Destroyed . | . . . . . . . . . . . . . . . . . . Critical Strikes 6 | 1 . . . . . 4 . . . . . . . . 1 . . Burn 1 | 1 . . . . . . . . . . . . . . . . . Sever 1 | . . . . . . . . . . . . . . . 1 . . Melee Attacks 329 | . . . . . . 70 17 15 17 25 2 12 95 29 30 12 5 Impact . | . . . . . . . . . . . . . . . . . . Slashing 309 | . . . . . . 70 17 15 17 21 1 12 94 29 28 . 5 Piercing . | . . . . . . . . . . . . . . . . . . Sneak Attacks 56 | . . . . . . 11 . 1 1 7 2 1 11 5 6 11 . Combat Hostiles 3 | . . . . . . 1 . . . . . . 2 . . . . Follow-up Attacks 26 | . . . . . . 6 2 . 1 2 . 1 5 6 3 . . Damage Inflicted 16442 | 199 886 . 1742 273 . 2502 619 319 552 989 98 755 2574 1105 1402 2407 20 Guns 2078 | 199 833 . 883 163 . . . . . . . . . . . . . Cannons 544 | . . . 434 110 . . . . . . . . . . . . . Explosions 2909 | . 53 . 425 . . . . . . . . . . . 24 2407 . Melee 10891 | . . . . . . 2502 619 319 552 989 98 755 2574 1105 1378 . . Ramming 20 | . . . . . . . . . . . . . . . . . 20 Kinetic 1561 | 99 735 . 727 . . . . . . . . . . . . . . Thermal 731 | 87 . . 371 273 . . . . . . . . . . . . . Explosive 2885 | . 53 . 425 . . . . . . . . . . . . 2407 . Electromagnetic 354 | 13 98 . 219 . . . . . . . . . . . 24 . . Impact . | . . . . . . . . . . . . . . . . . . Slashing 10891 | . . . . . . 2502 619 319 552 989 98 755 2574 1105 1378 . . Piercing . | . . . . . . . . . . . . . . . . . . Highest Corruption 3 | . . . . . . . . . . 1 1 1 3 3 3 3 3 Average Corruption 2 | . . . . . . . . . . 1 1 1 2 3 3 3 2 Corruption Purged . | . . . . . . . . . . . . . . . . . . Corruption Blocked 13 | . . . . . . . . . . . . . . . 2 9 2 Effects 24 | . . . . . . . . . . 1 2 3 . 7 9 . 2 Message Errors 12 | . . . . . . . . . . . 1 . . 4 7 . . Matter Fused 3 | . . . . . . . . . . . . . . 1 1 . 1 Heat Flow Errors 2 | . . . . . . . . . . . . 2 . . . . . Data Loss (minor) 5 | . . . . . . . . . . 1 1 1 . 2 . . . Data Loss (major) 1 | . . . . . . . . . . . . . . . 1 . . Alerts 1 | . . . . . . . . . . . . . . . . . 1 Overload Shots . | . . . . . . . . . . . . . . . . . . Overflow Damage 1767 | . . . . . . 273 160 95 123 133 . 214 372 275 122 . . Projectiles . | . . . . . . . . . . . . . . . . . . Explosions . | . . . . . . . . . . . . . . . . . . Melee 1767 | . . . . . . 273 160 95 123 133 . 214 372 275 122 . . Knockbacks . | . . . . . . . . . . . . . . . . . . Impact . | . . . . . . . . . . . . . . . . . . Kinetic . | . . . . . . . . . . . . . . . . . . Secondary . | . . . . . . . . . . . . . . . . . . Self-Inflicted Damage 71 | . 3 . 27 . . . . . . . . . . . 19 12 10 Shots 5 | . 1 . 2 . . . . . . . . . . . 1 1 . Rammed 3 | . . . . . . . . . . . . . . . . . 3 Targets Rammed 3 | . . . . . . . . . . . . . . . . . 3 Kicked . | . . . . . . . . . . . . . . . . . . Crushed . | . . . . . . . . . . . . . . . . . . Highest Temperature 321 | 45 90 . 282 288 . 178 53 118 100 15 . 272 32 . 177 24 321 Average Temperature 41 | 18 34 . 82 85 . 51 21 33 24 6 . 46 4 . 59 6 167 Received Heat Transfer 1825 | . 162 . 474 9 . 130 . 18 . 68 . . 147 . 144 282 391 Effects 2 | . . . 1 . . . . . . . . . . . . . 1 Energy Bleed 2 | . . . 1 . . . . . . . . . . . . . 1 Siege Activations . | . . . . . . . . . . . . . . . . . . Martial Activations . | . . . . . . . . . . . . . . . . . . Shielding Activations . | . . . . . . . . . . . . . . . . . . Robots Disrupted . | . . . . . . . . . . . . . . . . . . Combat Hostiles . | . . . . . . . . . . . . . . . . . . Robots Corrupted . | . . . . . . . . . . . . . . . . . . Combat Hostiles . | . . . . . . . . . . . . . . . . . . Parts Fried . | . . . . . . . . . . . . . . . . . . Impact Corruptions . | . . . . . . . . . . . . . . . . . . Robots Melted . | . . . . . . . . . . . . . . . . . . Combat Hostiles . | . . . . . . . . . . . . . . . . . . Parts Melted 6 | 2 . . 2 . . . . . . . . . . . 2 . . Heat Transferred 1154 | 333 . . 473 348 . . . . . . . . . . . . . Parts Sabotaged . | . . . . . . . . . . . . . . . . . . Parts Stolen . | . . . . . . . . . . . . . . . . . . Parts Stripped . | . . . . . . . . . . . . . . . . . . Power Chain Reactions . | . . . . . . . . . . . . . . . . . . Alert | -11 -10 -10 -10 -9 -9 -6 -6 -6 -6 -6 -6 -5 -5 -5 -5 -5 -4 ------- Run | Yrd Mat Min Sub Rec Scr Fac Was Fac Low Low Dat Pro Fac Upp Upp War Pro Maximum Alert Level 4 | . . . . . . 2 . . . . . . 4 . . . . Low Security (%) 85 | 100 100 100 . 100 . 68 100 100 . . . . . . . . . Level 1 1 | . . . . . . 19 . . . . . . . . . . . Level 2 4 | . . . . . . 12 . . . . . . 27 . . . . Level 3 6 | . . . . . . . . . . . . . 52 . . . . Level 4 2 | . . . . . . . . . . . . . 19 . . . . Level 5 . | . . . . . . . . . . . . . . . . . . High Security . | . . . . . . . . . . . . . . . . . . Max Security . | . . . . . . . . . . . . . . . . . . Peak Influence 1451 | 10 75 . . 34 . 482 169 31 . . . . 1451 . . . . Initial 600 | . . . . 14 . . 168 . . . . . 600 . . . . Average 131 | . 16 . . 5 . 171 58 9 . . . . 866 . . . . Influence Increases 4721 | 25 340 . 165 147 . 709 6 51 55 250 . 15 2129 115 314 85 315 Destroy 0b10 Robot/C 1280 | . 160 . 60 60 . 220 . . . 120 . . 300 100 180 80 . Destroy 0b10 Robot/NC 290 | 25 65 . . 15 . 65 . 15 10 . . 15 65 5 5 5 . Destroy Leader 200 | . 34 . . . . 58 . . . 20 . . 58 10 20 . . Allied During Kill 65 | . . . . . . . . . . 35 . . 26 . 4 . . Successful Hack 114 | . 30 . . 30 . 10 . . . . . . 44 . . . . Select Force Hacks 30 | . . . . 30 . . . . . . . . . . . . . Disable Machine 30 | . . . . . . . . . . . . . 30 . . . . Destroy Structure 132 | . 21 . . 12 . 11 6 6 . . . . 76 . . . . Advance Influence 600 | . . . . . . . . . . . . . 600 . . . . Partial Spotted 150 | . . . . . . 90 . 30 . . . . 30 . . . . Lose Combat Pursuer 1830 | . 30 . 105 . . 255 . . 45 75 . . 900 . 105 . 315 Influence Decreases 4511 | 25 340 . 135 177 . 228 487 48 58 157 93 15 754 754 507 628 105 Entered New Map 1618 | . . . . 16 . . 313 . 2 . 93 . . 510 141 543 . Time Decay 2142 | 25 340 . 125 161 . 208 174 48 56 155 . 15 294 214 246 6 75 Search Patrol Dispatched 200 | . . . . . . . . . . . . . 200 . . . . Lost Part 340 | . . . 10 . . 20 . . . . . . 80 30 120 50 30 Lost Ally 211 | . . . . . . . . . . 2 . . 180 . . 29 . Squads Dispatched 24 | . . . . . . 7 . 1 . . . . 14 . 1 . 1 Investigation 10 | . . . . . . 3 . . . . . . 7 . . . . Extermination 4 | . . . . . . 2 . . . . . . 2 . . . . Reinforcement 8 | . . . . . . 2 . 1 . . . . 5 . . . . Assault 2 | . . . . . . . . . . . . . . . 1 . 1 Garrison . | . . . . . . . . . . . . . . . . . . Intercept . | . . . . . . . . . . . . . . . . . . Searches Triggered 2 | . . . . . . . . . . . . . 2 . . . . Construction Impeded . | . . . . . . . . . . . . . . . . . . Haulers Reinforced . | . . . . . . . . . . . . . . . . . . Active Scanning Responses . | . . . . . . . . . . . . . . . . . . Cargo Convoy Interrupts . | . . . . . . . . . . . . . . . . . . Stealth | -11 -10 -10 -10 -9 -9 -6 -6 -6 -6 -6 -6 -5 -5 -5 -5 -5 -4 --------- Run | Yrd Mat Min Sub Rec Scr Fac Was Fac Low Low Dat Pro Fac Upp Upp War Pro Distress Signals 4 | . 1 . . . . 1 . . . . . . 2 . . . . Communications Jammed . | . . . . . . . . . . . . . . . . . . Distress Signals . | . . . . . . . . . . . . . . . . . . Times Spotted 304 | . 18 . 21 2 . 36 . 3 3 10 4 2 83 5 25 69 23 Peak Tracking Total 29 | . 3 . 6 1 . 7 . 1 3 5 4 1 18 5 7 29 10 Tactical Retreats 38 | . 2 . 2 . . 8 . . 1 2 . . 14 . 3 . 6 ECM-based Alert Blocks 10 | . . . . . . 3 . . . . . . 7 . . . . Traps | -11 -10 -10 -10 -9 -9 -6 -6 -6 -6 -6 -6 -5 -5 -5 -5 -5 -4 ------- Run | Yrd Mat Min Sub Rec Scr Fac Was Fac Low Low Dat Pro Fac Upp Upp War Pro Traps Triggered 12 | . 1 . 6 . . 1 . . . . . . 4 . . . . Indirectly . | . . . . . . . . . . . . . . . . . . Trap Hack Attempts . | . . . . . . . . . . . . . . . . . . Triggered . | . . . . . . . . . . . . . . . . . . Disarmed . | . . . . . . . . . . . . . . . . . . Reprogrammed . | . . . . . . . . . . . . . . . . . . Reused 7 | . . . . . . . . . . . . . . . 7 . . Traps Extracted . | . . . . . . . . . . . . . . . . . . Installed 9 | . . . . . . . . . . . . . . . 9 . . Triggered 7 | . . . . . . . . . . . . . . . 7 . . Most Traps Carried 9 | . . . . . . . . . . . . . . 6 9 8 8 Machines | -11 -10 -10 -10 -9 -9 -6 -6 -6 -6 -6 -6 -5 -5 -5 -5 -5 -4 ---------- Run | Yrd Mat Min Sub Rec Scr Fac Was Fac Low Low Dat Pro Fac Upp Upp War Pro Machines Disabled 6 | . . . 2 . . . . . . 1 . . 2 1 . . . Max in Single Turn 1 | . . . 1 . . . . . . 1 . . . 1 . . . Garrison Access 3 | . . . . . . 1 . . . . . . 2 . . . . Machines Repaired . | . . . . . . . . . . . . . . . . . . Machines Dismantled . | . . . . . . . . . . . . . . . . . . Machines Sabotaged . | . . . . . . . . . . . . . . . . . . Overloaded Fab Kills . | . . . . . . . . . . . . . . . . . . Hacking | -11 -10 -10 -10 -9 -9 -6 -6 -6 -6 -6 -6 -5 -5 -5 -5 -5 -4 --------- Run | Yrd Mat Min Sub Rec Scr Fac Was Fac Low Low Dat Pro Fac Upp Upp War Pro Machines Accessed 69 | . 7 . 1 10 10 9 . 2 . 3 4 . 14 1 1 7 . Terminals 23 | . 6 . . 6 . 5 . 1 . . . . 5 . . . . Fabricators 2 | . . . . . . 2 . . . . . . . . . . . Repair Stations 1 | . . . . . . . . 1 . . . . . . . . . Recycling Units 10 | . 1 . . 2 . 1 . . . . . . 6 . . . . Scanalyzers . | . . . . . . . . . . . . . . . . . . Garrison Access 4 | . . . . . . 1 . . . . . . 3 . . . . Total Hacks 258 | . 26 . 1 53 58 22 . 7 . 9 31 . 27 1 1 22 . Successful 198 | . 14 . 1 39 58 8 . 2 . 9 31 . 12 1 1 22 . Failed 59 | . 12 . . 13 . 14 . 5 . . . . 15 . . . . Catastrophic 7 | . 2 . . 1 . 2 . 1 . . . . 1 . . . . Database Lockouts 1 | . . . . 1 . . . . . . . . . . . . . Manual 65 | . 20 . . 16 . 14 . 5 . . . . 9 . . 1 . Terminals 83 | . 25 . . 26 . 14 . 5 . . . . 13 . . . . Fabricators 5 | . . . . . . 5 . . . . . . . . . . . Repair Stations 2 | . . . . . . . . 2 . . . . . . . . . Recycling Units 14 | . 1 . . 3 . 2 . . . . . . 8 . . . . Scanalyzers . | . . . . . . . . . . . . . . . . . . Garrison Access 7 | . . . . . . 1 . . . . . . 6 . . . . Terminal Hacks 165 | . 4 . 1 33 58 1 . . . 9 31 . 4 1 1 22 . Record 112 | . . . . 25 57 . . . . 7 11 . . 1 . 11 . Part Schematic 12 | . . . . 1 . . . . . . 11 . . . . . . Robot Schematic 6 | . . . . . . . . . . . 6 . . . . . . Robot Analysis 1 | . 1 . . . . . . . . . . . . . . . . Prototype ID Bank 15 | . . . . 2 . . . . . . 3 . . . . 10 . Open Door 5 | . . . . . 1 . . . . 2 . . . . 1 1 . Branch Access Points 1 | . . . . . . . . . . . . . 1 . . . . Terminal Index 1 | . . . . 1 . . . . . . . . . . . . . Locate Traps 3 | . 1 . . . . 1 . . . . . . 1 . . . . Patrol Status 1 | . 1 . . . . . . . . . . . . . . . . Hauler Manifests 1 | . . . . 1 . . . . . . . . . . . . . Registered Components 2 | . 1 . . . . . . . . . . . 1 . . . . Zone Layout 4 | . . . . 3 . . . . . . . . 1 . . . . Proto ID Catalog 1 | . . . 1 . . . . . . . . . . . . . . Fabricator Hacks 1 | . . . . . . 1 . . . . . . . . . . . Network Status 1 | . . . . . . 1 . . . . . . . . . . . Repair Station Hacks 1 | . . . . . . . . 1 . . . . . . . . . Scan Component 1 | . . . . . . . . 1 . . . . . . . . . Recycling Unit Hacks 1 | . 1 . . . . . . . . . . . . . . . . Retrieve Components 1 | . 1 . . . . . . . . . . . . . . . . Scanalyzer . | . . . . . . . . . . . . . . . . . . Garrison Access Hacks 3 | . . . . . . 1 . . . . . . 2 . . . . Seal Access 3 | . . . . . . 1 . . . . . . 2 . . . . Unauthorized Hacks 27 | . 9 . . 6 . 5 . 1 . . . . 6 . . . . Terminals 18 | . 9 . . 5 . 3 . 1 . . . . . . . . . Botnet 2 | . 2 . . . . . . . . . . . . . . . . Operators 2 | . 1 . . . . 1 . . . . . . . . . . . Skim 14 | . 6 . . 5 . 2 . 1 . . . . . . . . . Fabricators 2 | . . . . . . 2 . . . . . . . . . . . Recompile 2 | . . . . . . 2 . . . . . . . . . . . Repair Stations . | . . . . . . . . . . . . . . . . . . Recycling Units 7 | . . . . 1 . . . . . . . . 6 . . . . Tunnel 1 | . . . . 1 . . . . . . . . . . . . . Fedlink 4 | . . . . . . . . . . . . . 4 . . . . Scrapoids 2 | . . . . . . . . . . . . . 2 . . . . Scanalyzers . | . . . . . . . . . . . . . . . . . . Garrison Access . | . . . . . . . . . . . . . . . . . . Data Cores Recovered 3 | . 1 . . . . 1 . . . . . . 1 . . . . Used 1 | . 1 . . . . . . . . . . . . . . . . Hacking Detections 30 | . 6 . . 7 . 6 . 2 . . . . 9 . . . . Full Trace Events 3 | . . . . 1 . 1 . . . . . . 1 . . . . Feedback Events . | . . . . . . . . . . . . . . . . . . Feedback Blocked . | . . . . . . . . . . . . . . . . . . Robot Schematics Acquired 6 | . . . . . . . . . . . 6 . . . . . . Robots Built . | . . . . . . . . . . . . . . . . . . Authchips . | . . . . . . . . . . . . . . . . . . Time . | . . . . . . . . . . . . . . . . . . Total Robot Build Rating . | . . . . . . . . . . . . . . . . . . Part Schematics Acquired 12 | . . . . 1 . . . . . . 11 . . . . . . Parts Built . | . . . . . . . . . . . . . . . . . . Authchips . | . . . . . . . . . . . . . . . . . . Time . | . . . . . . . . . . . . . . . . . . Total Part Build Rating . | . . . . . . . . . . . . . . . . . . Part Studies Acquired . | . . . . . . . . . . . . . . . . . . Parts Repaired . | . . . . . . . . . . . . . . . . . . Time . | . . . . . . . . . . . . . . . . . . Parts Recycled . | . . . . . . . . . . . . . . . . . . Recycled Matter . | . . . . . . . . . . . . . . . . . . Retrieved Matter . | . . . . . . . . . . . . . . . . . . Retrieved Components 9 | . 9 . . . . . . . . . . . . . . . . Parts Scanalyzed . | . . . . . . . . . . . . . . . . . . Part Schematics Acquired . | . . . . . . . . . . . . . . . . . . Parts Damaged . | . . . . . . . . . . . . . . . . . . Bothacking | -11 -10 -10 -10 -9 -9 -6 -6 -6 -6 -6 -6 -5 -5 -5 -5 -5 -4 ------------ Run | Yrd Mat Min Sub Rec Scr Fac Was Fac Low Low Dat Pro Fac Upp Upp War Pro Used RIF Installer . | . . . . . . . . . . . . . . . . . . Robots Hacked 7 | . . . . . 2 . . . . . 1 . 1 . . 3 . Non-combat . | . . . . . . . . . . . . . . . . . . Combat 6 | . . . . . 2 . . . . . 1 . . . . 3 . Robot Hacks Applied 6 | . . . . . 2 . . . . . 1 . . . . 3 . parse_system 6 | . . . . . 2 . . . . . 1 . . . . 3 . Manual 1 | . . . . . . . . . . . . . 1 . . . . Relay Couplers Released . | . . . . . . . . . . . . . . . . . . Fabnet Peak Effective % . | . . . . . . . . . . . . . . . . . . Robots Rewired 10 | . . . . . . . . . . 4 . . . . 1 5 . Allies Hacked . | . . . . . . . . . . . . . . . . . . Hacks Repelled . | . . . . . . . . . . . . . . . . . . Allies | -11 -10 -10 -10 -9 -9 -6 -6 -6 -6 -6 -6 -5 -5 -5 -5 -5 -4 -------- Run | Yrd Mat Min Sub Rec Scr Fac Was Fac Low Low Dat Pro Fac Upp Upp War Pro Total Allies 24 | . . . . . . . . . . 7 . . 11 . 1 5 . Largest Group 6 | . . . . . . . . . . 4 4 1 5 . 1 6 . Highest-Rated Group 295 | . . . . . . . . . . 93 90 20 235 . 64 295 . Highest-Rated Ally 64 | . . . . . . . . . . 31 30 20 47 . 64 64 . Total Orders 10 | . . . . . . . . . . 8 1 . . . . 1 . STAY 2 | . . . . . . . . . . . 1 . . . . 1 . EXPLORE 8 | . . . . . . . . . . 8 . . . . . . . Ally Attacks 121 | . . . . . . . . . . 48 7 3 43 . 4 16 . Total Damage 2878 | . . . . . . . . . . 932 148 80 841 . 78 799 . Kills 15 | . . . . . . . . . . 7 . 1 4 . 1 2 . Allies Corrupted 1 | . . . . . . . . . . 1 . . . . . . . Allies Melted . | . . . . . . . . . . . . . . . . . . Intel | -11 -10 -10 -10 -9 -9 -6 -6 -6 -6 -6 -6 -5 -5 -5 -5 -5 -4 ------- Run | Yrd Mat Min Sub Rec Scr Fac Was Fac Low Low Dat Pro Fac Upp Upp War Pro Active Infowar (turns) 9206 | 56 666 1 1387 . . 512 537 149 996 1361 113 719 599 456 524 1130 . Optics 6885 | . . . 107 . . 511 537 149 996 1361 113 719 595 143 524 1130 . Sensors 4612 | . . 1 1280 . . 223 . . 993 387 . 707 582 422 17 . . Terrain 5126 | 56 640 . . . . . 196 78 979 1157 . 706 582 90 . 642 . Seismic 605 | . . . . . . 78 . 17 5 166 . . . 34 305 . . Cloaking 241 | . . . . . . 96 . . 12 . . . . 54 79 . . ECM 125 | . 26 . . . . 32 10 . . . . . 57 . . . . Robot Analysis Total 1 | . 1 . . . . . . . . . . . . . . . . Derelict Logs Recovered 15 | . . 1 . . 5 . . . 1 2 . 2 . 1 2 . 1 Drone Launches 9 | . . . . . . . . . . 9 . . . . . . . Drone Recoveries 7 | . . . . . . . . . . 7 . . . . . . . Exploration | -11 -10 -10 -10 -9 -9 -6 -6 -6 -6 -6 -6 -5 -5 -5 -5 -5 -4 ------------- Run | Yrd Mat Min Sub Rec Scr Fac Was Fac Low Low Dat Pro Fac Upp Upp War Pro Turns Passed 20270 | 141 1351 649 3413 1416 5817 513 537 149 996 1361 113 719 645 456 524 1149 321 Spaces Moved 14629 | 62 579 404 1533 556 2573 962 540 249 668 743 158 665 1303 861 1363 982 428 Core 185 | 2 . . . . . . . . . . . . . . . . 183 Treads 5343 | 60 579 404 1533 556 2211 . . . . . . . . . . . . Legs 1029 | . . . . . . . . . . . . . . . . 831 198 Wheels 362 | . . . . . 362 . . . . . . . . . . . . Hover 81 | . . . . . . . . . . . . . . . . 34 47 Flight 7629 | . . . . . . 962 540 249 668 743 158 665 1303 861 1363 117 . Fastest Speed 17 | 50 160 160 160 240 120 27 28 28 28 28 30 30 17 19 17 25 48 Average Speed 102 | 156 192 160 176 240 223 28 29 28 28 29 30 30 27 22 26 97 68 Slowest Speed 240 | 160 240 160 240 240 240 40 94 28 28 30 30 30 30 88 102 182 90 Overloaded Moves 185 | . . . . . . . . . . . . . 14 . 41 116 14 Propulsion Burnouts 1 | . . . . . . . . . . . . . . . . 1 . Robots Hopped 19 | . . . . . . 4 . . . 2 1 . 12 . . . . Potential Cave-ins 6 | . . . . . . . . . . . . . . . . 6 . Cave-ins Triggered 1 | . . . . . . . . . . . . . . . . 1 . Exploration Rate (%) 71 | 4 85 100 68 97 94 32 96 5 76 82 80 77 55 84 94 92 71 Regions Visited 17 Branch Regions 12 Pre-discovered Areas 9 | . . . . 2 2 . . . 1 1 1 . 1 . . . 1 Known Exits Taken 4 | . . . . . . . . 1 . . . 1 1 1 . . . Unknown Exits Taken 11 | 1 1 1 1 1 1 . . . 1 1 1 . . . 1 1 . Scrap Searched 31 | . . 1 5 . 8 . . . 2 3 . 5 . 3 3 . 1 Spaces Dug 76 | . . . 3 5 . 11 6 6 6 1 . 1 32 . . . 5 Terrain Destroyed 191 | . 17 . 43 16 . 11 6 6 6 1 . 1 32 . . 47 5 Melee 68 | . . . . . . 11 6 6 6 1 . 1 32 . . . 5 Projectile 19 | . . . 3 16 . . . . . . . . . . . . . AOE 104 | . 17 . 40 . . . . . . . . . . . . 47 . Terrain Rammed . | . . . . . . . . . . . . . . . . . . Walls Destroyed . | . . . . . . . . . . . . . . . . . . Machines Disabled . | . . . . . . . . . . . . . . . . . . Actions | -11 -10 -10 -10 -9 -9 -6 -6 -6 -6 -6 -6 -5 -5 -5 -5 -5 -4 --------- Run | Yrd Mat Min Sub Rec Scr Fac Was Fac Low Low Dat Pro Fac Upp Upp War Pro Total 19279 | 83 713 406 2108 605 2658 1133 893 306 1455 1850 219 1168 1472 1095 1495 1166 454 Wait 3716 | . 28 . 436 13 22 77 328 35 770 1069 57 483 58 196 48 92 4 Move 14577 | 61 578 403 1532 555 2572 954 539 248 667 739 155 664 1280 860 1362 980 428 Hop 16 | . . . . . . 4 . . . 1 1 . 10 . . . . Pick Up 123 | 4 23 1 19 6 24 6 1 2 . . . 2 11 2 13 9 . Fast Attach 76 | 5 . . 4 1 4 6 5 . 1 2 . 3 10 4 7 24 . Attach 49 | 2 . . 9 . 2 8 . 1 . . . . 7 2 6 9 3 Detach 15 | . . . 1 . . . . . . . . . . 2 5 3 4 Swap 101 | 1 15 2 19 2 4 11 3 4 4 15 4 2 3 3 3 6 . Drop 154 | . 15 . 16 9 28 13 4 2 1 3 . 4 10 5 13 24 7 Fire 165 | 10 54 . 72 19 2 . . . . . . . . . 2 6 . Melee 267 | . . . . . . 54 13 14 12 21 2 10 76 21 27 12 5 Ram 3 | . . . . . . . . . . . . . . . . . 3 Kick . | . . . . . . . . . . . . . . . . . . Crush . | . . . . . . . . . . . . . . . . . . Escape Stasis 8 | . . . . . . . . . . . . . 7 . . 1 . Rewire . | . . . . . . . . . . . . . . . . . . Trap 9 | . . . . . . . . . . . . . . . 9 . . Miscellaneous . | . . . . . . . . . . . . . . . . . . Route ------- -11/Scrapyard -10/Materials (discovered 3 exits: *Mat x2 / [*Min]) -10/Mines (discovered 3 exits: *Mat x2 / *Sub) -10/Subcaves (discovered 3 exits: [*Mat x2] / *Rec) -9/Recycling (discovered 2 exits: [*Fac] / *Scr) -9/Scraptown (discovered 2 exits: *Fac x2) -6/Factory (discovered 2 exits: *Fac x2) -6/Waste -6/Factory -6/Lower Caves -6/Lower Caves (discovered 2 exits: Fac / *Dat) -6/Data Miner -5/Proximity Caves -5/Factory (discovered 4 exits: *Fac x2 / *Upp x2) -5/Upper Caves -5/Upper Caves (discovered 2 exits: *Fac / *War) -5/Warlord -4/Proximity Caves History --------- Turn | Location | Event 13 | -11/Scrapyard | Discovered new exit (range 14) 142 | -11/Scrapyard | Entered Materials 311 | -10/Materials | Build established: Mutant 470 | -10/Materials | Discovered new exit (range 7) 646 | -10/Materials | Discovered new exit (range 15) 736 | -10/Materials | Identified exit to Materials 777 | -10/Materials | Learned Storage garrison access intel 810 | -10/Materials | Loaded intel: 14 trap records 849 | -10/Materials | Learned Materials trap positions 876 | -10/Materials | Learned 4 Materials zone layouts 915 | -10/Materials | Learned 2 Mines zone layouts 1453 | -10/Materials | Discovered new exit (range 7) 1493 | -10/Materials | Entered Mines 1589 | -10/Mines | Learned location of 1 exit from Materials 1629 | -10/Mines | Found a damaged Exp. Sensor Array with a note attached 1633 | -10/Mines | Found Prototype Device 1634 | -10/Mines | Identified Exp. Sensor Array 1636 | -10/Mines | Received a Rocket Launcher from a helpful Derelict 1977 | -10/Mines | Discovered exit to Materials (range 5) 2129 | -10/Mines | Discovered new exit (range 9) 2142 | -10/Mines | Entered Subcaves 2143 | -10/Subcaves | Approached by a straggling Scientist 2242 | -10/Subcaves | Disturbed a concealed Subdweller 2655 | -10/Subcaves | Build established: Scavenger-Mutant 3228 | -10/Subcaves | Discovered new exit (range 3) 3447 | -10/Subcaves | A swath of the cavern ceiling suddenly collapsed 3722 | -10/Subcaves | Build established: Mutant 4378 | -10/Subcaves | Core integrity fell below 50% 4396 | -10/Subcaves | Discovered new exit (range 5) 4514 | -10/Subcaves | Shifting Twisted Machinery released Sub. Monowheel 4518 | -10/Subcaves | Shifting Twisted Machinery released Sub. Shrapnel Launcher 4546 | -10/Subcaves | Shifting Twisted Machinery released Battle Rifle 4569 | -10/Subcaves | Shifting Twisted Machinery released Sub. Machine Gun 4680 | -10/Subcaves | Discovered new exit (range 14) 4728 | -10/Subcaves | Visited 4L-MR0's lab 4746 | -10/Subcaves | Found Flightbrick 5555 | -10/Subcaves | Entered Recycling 5861 | -9/Recycling | Build established: Scavenger-Mutant 6721 | -9/Recycling | Discovered new exit (range 16) 6905 | -9/Recycling | Learned 2 Materials zone layouts 6911 | -9/Recycling | Scanned before Scraplab entrance 6945 | -9/Recycling | Entered Scraplab 6969 | -9/Recycling | Discovered new exit (range 2) 6971 | -9/Recycling | Entered Scraptown 7425 | -9/Scraptown | Discovered new exit (range 13) 7581 | -9/Scraptown | Scanned Subdweller tech in exchange for log data 7586 | -9/Scraptown | Learned Research stockpile data 7588 | -9/Scraptown | Learned Factory trap positions 7591 | -9/Scraptown | Learned Factory terminal intel 7593 | -9/Scraptown | Learned location of 1 exit from Upper Caves 7595 | -9/Scraptown | Learned Factory stockpile data 7663 | -9/Scraptown | Visited CR-KLE's Repair Center 7696 | -9/Scraptown | Visited Spacefarers 7807 | -9/Scraptown | Visited Bundlers 8284 | -9/Scraptown | Visited Cyclists 8354 | -9/Scraptown | Visited Junk Repository 8404 | -9/Scraptown | Visited Red Mages 8510 | -9/Scraptown | Visited UFD Registry 8510 | -9/Scraptown | Registered with UFD as "Smoothunit" 8551 | -9/Scraptown | Visited Symbiants 8680 | -9/Scraptown | Entered Cyclist Reading Room 8687 | -9/Scraptown | Learned location of Exiles (-9) 8687 | -9/Scraptown | Learned location of Zion (-7) 8800 | -9/Scraptown | Visited Research Penetration Think Tank 8855 | -9/Scraptown | Visited Sword Containment 8891 | -9/Scraptown | Visited Abandonware Association 8918 | -9/Scraptown | Learned abandonware demo "HACKBUD.EXE" 8918 | -9/Scraptown | Learned abandonware demo "KABOOM.EXE" 8923 | -9/Scraptown | Learned abandonware demo "OVRCLOCK.EXE" 9223 | -9/Scraptown | Visited Curators Association 9297 | -9/Scraptown | Visited DA-N13 Charitable Foundation 9319 | -9/Scraptown | Found DCF Scrap (27 items) 9374 | -9/Scraptown | Visited Junk Repository 9410 | -9/Scraptown | Visited Modified Component R&D 9508 | -9/Scraptown | Visited Science Testing Area 9609 | -9/Scraptown | Visited LU-1G1's Boring Crew 9959 | -9/Scraptown | Discovered new exit (range 5) 10353 | -9/Scraptown | Build established: Mutant 12215 | -9/Scraptown | Found Prototype Slashing Weapon 12216 | -9/Scraptown | Identified Companion Sword 12724 | -9/Scraptown | Met Optimus 12724 | -9/Scraptown | Accepted into 0bPrime 12788 | -9/Scraptown | Entered Factory 12788 | -6/Factory | Evolved 8 slots: Power x1, Propulsion x5, Utility x2 12789 | -6/Factory | Loaded intel: 106 trap records 12789 | -6/Factory | Attached Flightbrick, gained temporary slots: Utility x3 12791 | -6/Factory | Loaded intel: 28 terminal locations 13027 | -6/Factory | Discovered new exit (range 13) 13082 | -6/Factory | Build established: Scavenger-Sprinter 13166 | -6/Factory | Discovered new exit (range 11) 13301 | -6/Factory | Manually triggered Chute Trap 13301 | -6/Factory | Sucked down chute 13301 | -6/Factory | Entered Waste 13301 | -6/Waste | The area was eerily silent 13347 | -6/Waste | Discovered new exit (range 19) 13838 | -6/Waste | Entered Factory 13914 | -6/Factory | Discovered new exit (range 18) 13957 | -6/Factory | Identified exit to Lower Caves 13987 | -6/Factory | Entered Lower Caves 14256 | -6/Lower Caves | Build established: Scout 14503 | -6/Lower Caves | Spotted B-75 Beast 14827 | -6/Lower Caves | Discovered new exit (range 19) 14983 | -6/Lower Caves | Entered another Lower Caves area 14999 | -6/Lower Caves | Attracted the attention of an 0b10 checkpoint 15002 | -6/Lower Caves | Encountered a Warlord checkpoint 15061 | -6/Lower Caves | Lost 3 allies 15322 | -6/Lower Caves | Entered an active Warlord outpost 15323 | -6/Lower Caves | A Commander dispatched an escort 15323 | -6/Lower Caves | Learned 8 Research zone layouts 15323 | -6/Lower Caves | Learned Factory terminal intel 15323 | -6/Lower Caves | Learned Armory terminal intel 15635 | -6/Lower Caves | Identified exit to Factory 16110 | -6/Lower Caves | Learned location of 1 exit from Factory 16117 | -6/Lower Caves | Attacked by a delusional Derelict stockpiling Unaware 16163 | -6/Lower Caves | Discovered new exit (range 8) 16344 | -6/Lower Caves | Entered Data Miner 16344 | -6/Data Miner | Accompanied by 4 allies 16344 | -6/Data Miner | Discovered new exit (range 6) 16349 | -6/Data Miner | Met Data Miner 16358 | -6/Data Miner | Learned location of Section 7 (-3) 16358 | -6/Data Miner | Acquired the access code to Warlord's prototype stash 16386 | -6/Data Miner | Received God Mode back door access code from Data Miner 16454 | -6/Data Miner | Data Conduit disabled 16457 | -6/Data Miner | Entered Proximity Caves 16457 | -5/Proximity Caves | Accompanied by 1 ally 16463 | -5/Proximity Caves | Spotter reported a threat 16468 | -5/Proximity Caves | Learned Factory security intel 16468 | -5/Proximity Caves | Spotter reported a threat 16521 | -5/Proximity Caves | Spotter reported a threat 16640 | -5/Proximity Caves | Spotter reported a threat 17050 | -5/Proximity Caves | Received a Behemoth hack from an annoying Tinkerer 17176 | -5/Proximity Caves | Entered Factory 17176 | -5/Factory | Evolved 2 slots: Utility x2 17177 | -5/Factory | Identified exit to Factory 17179 | -5/Factory | Loaded intel: 26 terminal locations 17207 | -5/Factory | Loaded intel: 8 recycling unit locations 17302 | -5/Factory | Learned location of Protoforge (-3) 17353 | -5/Factory | Found Prototype Processor 17353 | -5/Factory | Identified Exp. Targeting Computer 17402 | -5/Factory | Spotted B-75 Beast 17476 | -5/Factory | Search patrols dispatched 17522 | -5/Factory | Scrapoids reinforcements arrived? 17709 | -5/Factory | Discovered exit to Factory (range 18) 17759 | -5/Factory | Scrapoids reinforcements arrived? 17776 | -5/Factory | Search patrols dispatched 17798 | -5/Factory | Destroyed 10 combat bots 17801 | -5/Factory | Identified exit to Upper Caves 17802 | -5/Factory | Lost 5 parts (1p2n2u) 17808 | -5/Factory | Lost 3 allies 17821 | -5/Factory | Entered Upper Caves 17822 | -5/Upper Caves | Identified exit to Upper Caves 17982 | -5/Upper Caves | Encountered a Warlord checkpoint 18034 | -5/Upper Caves | Learned Factory interactive machine intel 18082 | -5/Upper Caves | Build established: Sprinter 18134 | -5/Upper Caves | Entered a destroyed Warlord outpost 18277 | -5/Upper Caves | Entered another Upper Caves area 18278 | -5/Upper Caves | Discovered exit to Factory (range 10) 18334 | -5/Upper Caves | Lost 7 parts (3n3u1w) 18350 | -5/Upper Caves | Learned 4 Factory zone layouts 18668 | -5/Upper Caves | Discovered new exit (range 11) 18732 | -5/Upper Caves | Learned Factory terminal intel 18758 | -5/Upper Caves | Build established: Trapper-Sprinter 18774 | -5/Upper Caves | Attracted the attention of an 0b10 outpost 18801 | -5/Upper Caves | Entered Warlord 18801 | -5/Warlord | Accompanied by 1 ally 18816 | -5/Warlord | System corruption cleaned by Quarantine Array 18839 | -5/Warlord | Lost 6 parts (1p4n1u) 18893 | -5/Warlord | Opened Warlord's prototype stash 18911 | -5/Warlord | Found System Mapper 18916 | -5/Warlord | Found Prototype Reactor 18916 | -5/Warlord | Identified Vortex Chain Reactor 19093 | -5/Warlord | Build established: Trapper-Mutant 19411 | -5/Warlord | Warlord's base attacked by MAIN.C 19428 | -5/Warlord | Build established: Commander-Mutant 19496 | -5/Warlord | Found Prototype Energy Gun 19496 | -5/Warlord | Identified Vortex Rail 19504 | -5/Warlord | Found Prototype Energy Gun 19504 | -5/Warlord | Identified Vortex Shotgun 19584 | -5/Warlord | Rebuked by Warlord 19620 | -5/Warlord | Found Prototype Special Weapon 19620 | -5/Warlord | Identified RU-N14's Throwing Claymores v3 19761 | -5/Warlord | Warlord forces counterattacked 19853 | -5/Warlord | Lost 5 allies 19857 | -5/Warlord | Spotted Striker 19909 | -5/Warlord | Lost 6 allies 19911 | -5/Warlord | Spotted Striker 19911 | -5/Warlord | Spotted Striker 19920 | -5/Warlord | Attacked by Warlord forces 19920 | -5/Warlord | Spotted RT-5A1(g) 19920 | -5/Warlord | Spotted R1-213(g) 19931 | -5/Warlord | Crushed by falling debris 19933 | -5/Warlord | Core integrity fell below 50% 19939 | -5/Warlord | Discovered new exit (range 15) 19950 | -5/Warlord | Lost 7 allies 19950 | -5/Warlord | Entered Proximity Caves 19951 | -4/Proximity Caves | Learned location of Quarantine (-3) 19973 | -4/Proximity Caves | Lost 8 parts (4n3u1w) 20028 | -4/Proximity Caves | Spotted B-86 Titan 20124 | -4/Proximity Caves | Attracted the attention of an 0b10 outpost 20204 | -4/Proximity Caves | Core integrity fell below 20% 20215 | -4/Proximity Caves | Lost 4 parts (3n1w) 20235 | -4/Proximity Caves | Build established: Trapper-Mutant 20271 | -4/Proximity Caves | Destroyed by S-27 Virus with Autogun Last Messages --------------- 20176_ Dropped Imp. Proton Missile Launcher. 20176_ Dropped Med. Storage Unit. 20183_ Imp. Corruption Screen intercepted 1% system corruption. 20183_ Imp. Corruption Screen expended. 20184_ Dirty Datajack destroyed. 20185_ Slammed into P-70 Sage. 20185_ Destabilizing: System corrupted (+1). 20186_ Slammed into P-70 Sage. 20189_ P-70 Sage resets P-70 Sage, system corruption cleaned. 20200_ C-45 Heavy ARC bursts open, deploying its payload. 20200_ G-73 Enforcer unfolds itself. 20200_ B-60 Warrior unfolds itself. 20200_ G-67 Veteran unfolds itself. 20200_ L-61 Swordsman unfolds itself. 20200_ E-15 Imp unfolds itself. 20201_ E-15 Imp destroyed. 20238_ HS-XBA(r) destroyed. 20242_ 8Z-02T(r) collects Com. Wheel. 20251_ System corrupted: Matter fused (-5). 20266_ System corrupted: IFF burst signal emitted. Map ----- +----------------------------------------------------+ | ?????????????????????????????????????????????????? | | ?????????????????????????????????????????????????? | | ?????????????????????????????????????????????????? | | ?????????????????????????????????????????????????? | | ???????????????????????????????????????????????### | | ???????????????????????????????????????#???????# | | ????????????????????????????????????? #??????# | | ????????????????????????????????????? #?????# | | ???????????????????????????????????? #????# | | ???????????????????????????????????? #???# | | ??????????????????????????????????? ???# | | ???????????????????????????????????# #??# | | ???????????????????????????????????? #?# | | ??????????????????????????????????? "" ## | | ??????????????????????????????????? """" | | ?????????????????????????????????? "" | | ???????????????????????????????### "" | | ??????????????????????????????# """" ## # | | ??????????????????????????#### """" #??## # | | ????????????????????????### """" #??## | | ???????????????????????## #### # | | ???????????????????????# s # # | | ??????????????????????# ## ###????## #### | | ????????????????# ??##?### ##?????## ##??? | | ?????????????????# ### ##?????## #???? | | ??????????????????# @ s ##??##### ##???? | | ??????????????????#### s##### #????? | | ?????????????????????## ss ### #????? | | ??????????????????????# ##### ###?# #????? | | ??????????????????????# ????## ##???## ##????? | | ?????????????????????? ??????### ##?????###?????? | | ????????????????????? #????????# #??????????????? | | ???????????????????? ?????????## #??????????????? | | ???????????????????# ???????????###?????????###??? | | ??????????????????? ??????????????????????## ##? | | ??????????????????? ???????????????????? ## # | | ?????????????????? ???????????????????? | | ?????????????????? ????????????????????? | | ???????????????????????????????????????? | | ????????????????????????????????????????# | | ?????????????????????????????????????????# | | ##????????????????????????????????????????# | | #????????????????????????????????????????# | | ????????????????????????????????????????# | | ???????????????????????????????####??????# ### | | ????????????????????#?? ??????# #??????????# | | #???????????????????? ## ###???# #?????????## | | ##??????????????????? ##??# #????????## | | ##????????????????? #### #????????# | | #?????????????????? #????????# | +----------------------------------------------------+ Best States ------------- Heat Dissipation 40 Energy Generation 55 Energy Capacity 700 Matter Stores 500 Matter Capacity 500 Sight Range 22 Robot Scan Range 20 Terrain Scan Range 20 Terrain Scan Density 210 ECM Strength 2 Cloak Strength 2 Corruption Block 13 Armor Coverage 225 Melee Speed Boost 20 Evasion (%) 72 Melee Accuracy 16 Recoil Reduction 2 Offensive Hacking 12 Trap Extractor Capacity 8 Item Schematics ----------------- Hcp. Storage Unit | -9/Recycling | Hacked Combat Drone Bay | -6/Data Miner | Free Lgt. Regenerative Plating | -6/Data Miner | Free Enh. Armored Leg | -6/Data Miner | Free Prc. Energy Filter | -6/Data Miner | Free Hvy. Proton Missile Launcher | -6/Data Miner | Free Imp. Heavy Treads | -6/Data Miner | Free Imp. Force Field | -6/Data Miner | Free Railgun | -6/Data Miner | Free Adv. Shield Generator | -6/Data Miner | Free Adv. Cryofiber Web | -6/Data Miner | Free Adv. Coolant Injector | -6/Data Miner | Free Robot Schematics ------------------ M-22 Extractor | -6/Data Miner | Free S-27 Virus | -6/Data Miner | Free Y-54 Guardian | -6/Data Miner | Free O-32 Director | -6/Data Miner | Free H-77 Assassin | -6/Data Miner | Free C-35 Carver | -6/Data Miner | Free Fabricated ------------ Nothing Repaired ---------- Nothing Studied --------- None Alien Tech Used ----------------- None Achievements -------------- Ambidextrous Challenges ------------ None Game ------ Seed ThrowingSystemArchive Manual? 0 Play Time 02:38:00 Cumulative 69.6 hours Start 2026.01.02 @ 01:34:55 End 2026.01.02 @ 04:24:53 Sessions 1 Manual Loads 0 Difficulty Rogue Special Mode None Game No. 33 Rogue 33 Adventurer 0 Explorer 0 Win Type - Total 0 Types 0/0/0/0/0/0/0/0/0/0 Lore% 53 Gallery% 56 Achievement% 50 Wizard Run 0 Options --------- Layout 0 ASCII 0 Keyboard 0 Movement Mouse Keybinds 0 Fullscreen 1 Font 24/Smallcaps Map View 183x50 Zoom Use 0% Tactical HUD 1 Map Filters NONE Filters NONE Steam 1 RUN: bc5e3c9d-63d7-4e0e-914a-698323e8b554